Workbook

Sheet calc
B2: kT | C2: =const!C15 -> 0.0258520269 | D2: eV
B3: Jph_A | C3: 34 | D3: mA/cm^2
B4: Jph_B | C4: 30 | D4: mA/cm^2
B5: J0_A | C5: 9.8e-09 | D5: mA/cm^2
B6: J0_B | C6: 3.6e-10 | D6: mA/cm^2
B7: n | C7: 1
B9: JnetA | C9: =C3+C5 -> 34.00000001 | D9: mA/cm^2
B10: JnetB | C10: =C4+C6 -> 30 | D10: mA/cm^2
B11: <Jnet> | C11: =(C9+C10)/2 -> 32.00000001 | D11: mA/cm^2
B12: dJnet | C12: =C9-C10 -> 4.000000009 | D12: mA/cm^2

Sheet const
A1: Fundamental Constants:
A2: Description
A3: Planck constant | B3: h (J.s) | C3: 6.62606876e-34 | E3: h (eV.s) | F3: =C3/C5 -> 4.135667273e-15
A4: speed of light | B4: c (m/s) | C4: 299792458
A5: fundamental electric charge | B5: e (C) | C5: 1.602176462e-19
A6: Boltzmann constant | B6: k_B (J/K) | C6: 1.3806503e-23 | E6: k_B (eV/K) | F6: =C6/C5 -> 8.617342301e-05
A7: electron mass | B7: m_e (kg) | C7: 9.10938188e-31 | E7: m_e·c^2 (J) | F7: =C7*C4^2 -> 8.18710414e-14 | H7: m_e·c^2 (eV) | I7: =F7/C5 -> 510998.9027
A8: Avagodro number | B8: N_A (1/mole) | C8: 6.0221415e+23
A9: permitivitty of free space | B9: eps0 (F/m) | C9: 8.854187817e-12
A13: Derived Constants:
A14: Description
A15: room temp. thermal energy | B15: k_B·(300K) (eV) | C15: =300*const!C6/const!C5 -> 0.0258520269
A16: Planck constant x speed of light | B16: h·c (eV·nm) | C16: =const!F3*const!C4*1000000000 -> 1239.841857 | E16: h·c (KeV·nm) | F16: =C16/1000 -> 1.239841857
A17: universal gas constant | B17: R (J/mol/K) | C17: =const!C6*const!C8 -> 8.314471469
A18: Faraday Constant | B18: F (C/mol) | C18: =const!C8*const!C5 -> 96485.33362
A19: Stefan Constant | B19: ss (W.m^2/K) | C19: =2*PI()^5/15*C6^4/C3^3/C4^2 -> 5.670399344e-08
A20: h_bar | C20: =C3/2/PI() -> 1.054571596e-34
A21: Bohr Radius | B21: a0 (m) | C21: =4*PI()*C9*C20^2/C7/C5^2 -> 5.291772086e-11
A22: Rydberg | C22: =C20^2/2/C7/C21^2 -> 2.179871902e-18 | F22: =C22/C5 -> 13.60569172
A23: Reference effective DOS | B23: N0 (cm^-3) | C23: =2*(2*PI()*I7*C15/(C16/10000000)^2)^1.5 -> 2.509416596e+19
A25: astronomical values
A26: earth-sun distance | B26: Des (m) | C26: 150000000000
A27: sun diameter | B27: ds (m) | C27: 1390000000

Sheet data
A1: V | B1: J | C1: VA | D1: VB | E1: JA | F1: JB
A2: -0.1 | B2: =calc!C$11-SQRT((calc!C$12/2)^2+calc!C$5*calc!C$6*EXP(data!A2/calc!C$7/calc!C$2)) -> 30 | C2: =calc!C$7*calc!C$2*LN((calc!C$3-data!B2)/calc!C$5+1) -> 0.5125727343 | D2: =calc!C$7*calc!C$2*LN((calc!C$4-data!B2)/calc!C$6+1) -> -0.2981919388 | E2: =calc!C$3-calc!C$5*(EXP(data!A2/calc!C$7/calc!C$2)-1) -> 34.00000001 | F2: =calc!C$4-calc!C$6*(EXP(data!A2/calc!C$7/calc!C$2)-1) -> 30
A3: -0.05 | B3: =calc!C$11-SQRT((calc!C$12/2)^2+calc!C$5*calc!C$6*EXP(data!A3/calc!C$7/calc!C$2)) -> 30 | C3: =calc!C$7*calc!C$2*LN((calc!C$3-data!B3)/calc!C$5+1) -> 0.5125727343 | D3: =calc!C$7*calc!C$2*LN((calc!C$4-data!B3)/calc!C$6+1) -> -0.2981919388 | E3: =calc!C$3-calc!C$5*(EXP(data!A3/calc!C$7/calc!C$2)-1) -> 34.00000001 | F3: =calc!C$4-calc!C$6*(EXP(data!A3/calc!C$7/calc!C$2)-1) -> 30
A4: 0 | B4: =calc!C$11-SQRT((calc!C$12/2)^2+calc!C$5*calc!C$6*EXP(data!A4/calc!C$7/calc!C$2)) -> 30 | C4: =calc!C$7*calc!C$2*LN((calc!C$3-data!B4)/calc!C$5+1) -> 0.5125727343 | D4: =calc!C$7*calc!C$2*LN((calc!C$4-data!B4)/calc!C$6+1) -> -0.2981919388 | E4: =calc!C$3-calc!C$5*(EXP(data!A4/calc!C$7/calc!C$2)-1) -> 34 | F4: =calc!C$4-calc!C$6*(EXP(data!A4/calc!C$7/calc!C$2)-1) -> 30
A5: 0.05 | B5: =calc!C$11-SQRT((calc!C$12/2)^2+calc!C$5*calc!C$6*EXP(data!A5/calc!C$7/calc!C$2)) -> 30 | C5: =calc!C$7*calc!C$2*LN((calc!C$3-data!B5)/calc!C$5+1) -> 0.5125727343 | D5: =calc!C$7*calc!C$2*LN((calc!C$4-data!B5)/calc!C$6+1) -> -0.2981919388 | E5: =calc!C$3-calc!C$5*(EXP(data!A5/calc!C$7/calc!C$2)-1) -> 33.99999994 | F5: =calc!C$4-calc!C$6*(EXP(data!A5/calc!C$7/calc!C$2)-1) -> 30
A6: 0.1 | B6: =calc!C$11-SQRT((calc!C$12/2)^2+calc!C$5*calc!C$6*EXP(data!A6/calc!C$7/calc!C$2)) -> 30 | C6: =calc!C$7*calc!C$2*LN((calc!C$3-data!B6)/calc!C$5+1) -> 0.5125727343 | D6: =calc!C$7*calc!C$2*LN((calc!C$4-data!B6)/calc!C$6+1) -> -0.2981919388 | E6: =calc!C$3-calc!C$5*(EXP(data!A6/calc!C$7/calc!C$2)-1) -> 33.99999954 | F6: =calc!C$4-calc!C$6*(EXP(data!A6/calc!C$7/calc!C$2)-1) -> 29.99999998
A7: 0.15 | B7: =calc!C$11-SQRT((calc!C$12/2)^2+calc!C$5*calc!C$6*EXP(data!A7/calc!C$7/calc!C$2)) -> 30 | C7: =calc!C$7*calc!C$2*LN((calc!C$3-data!B7)/calc!C$5+1) -> 0.5125727343 | D7: =calc!C$7*calc!C$2*LN((calc!C$4-data!B7)/calc!C$6+1) -> -0.2981919388 | E7: =calc!C$3-calc!C$5*(EXP(data!A7/calc!C$7/calc!C$2)-1) -> 33.99999677 | F7: =calc!C$4-calc!C$6*(EXP(data!A7/calc!C$7/calc!C$2)-1) -> 29.99999988
A8: 0.2 | B8: =calc!C$11-SQRT((calc!C$12/2)^2+calc!C$5*calc!C$6*EXP(data!A8/calc!C$7/calc!C$2)) -> 30 | C8: =calc!C$7*calc!C$2*LN((calc!C$3-data!B8)/calc!C$5+1) -> 0.5125727343 | D8: =calc!C$7*calc!C$2*LN((calc!C$4-data!B8)/calc!C$6+1) -> -0.2981919388 | E8: =calc!C$3-calc!C$5*(EXP(data!A8/calc!C$7/calc!C$2)-1) -> 33.99997757 | F8: =calc!C$4-calc!C$6*(EXP(data!A8/calc!C$7/calc!C$2)-1) -> 29.99999918
A9: 0.25 | B9: =calc!C$11-SQRT((calc!C$12/2)^2+calc!C$5*calc!C$6*EXP(data!A9/calc!C$7/calc!C$2)) -> 30 | C9: =calc!C$7*calc!C$2*LN((calc!C$3-data!B9)/calc!C$5+1) -> 0.5125727343 | D9: =calc!C$7*calc!C$2*LN((calc!C$4-data!B9)/calc!C$6+1) -> -0.2621900021 | E9: =calc!C$3-calc!C$5*(EXP(data!A9/calc!C$7/calc!C$2)-1) -> 33.99984476 | F9: =calc!C$4-calc!C$6*(EXP(data!A9/calc!C$7/calc!C$2)-1) -> 29.9999943
A10: 0.3 | B10: =calc!C$11-SQRT((calc!C$12/2)^2+calc!C$5*calc!C$6*EXP(data!A10/calc!C$7/calc!C$2)) -> 30 | C10: =calc!C$7*calc!C$2*LN((calc!C$3-data!B10)/calc!C$5+1) -> 0.5125727343 | D10: =calc!C$7*calc!C$2*LN((calc!C$4-data!B10)/calc!C$6+1) -> -0.2118377789 | E10: =calc!C$3-calc!C$5*(EXP(data!A10/calc!C$7/calc!C$2)-1) -> 33.99892602 | F10: =calc!C$4-calc!C$6*(EXP(data!A10/calc!C$7/calc!C$2)-1) -> 29.99996055
A11: 0.35 | B11: =calc!C$11-SQRT((calc!C$12/2)^2+calc!C$5*calc!C$6*EXP(data!A11/calc!C$7/calc!C$2)) -> 30 | C11: =calc!C$7*calc!C$2*LN((calc!C$3-data!B11)/calc!C$5+1) -> 0.5125727343 | D11: =calc!C$7*calc!C$2*LN((calc!C$4-data!B11)/calc!C$6+1) -> -0.1624656394 | E11: =calc!C$3-calc!C$5*(EXP(data!A11/calc!C$7/calc!C$2)-1) -> 33.99257048 | F11: =calc!C$4-calc!C$6*(EXP(data!A11/calc!C$7/calc!C$2)-1) -> 29.99972708
A12: 0.4 | B12: =calc!C$11-SQRT((calc!C$12/2)^2+calc!C$5*calc!C$6*EXP(data!A12/calc!C$7/calc!C$2)) -> 30 | C12: =calc!C$7*calc!C$2*LN((calc!C$3-data!B12)/calc!C$5+1) -> 0.5125727343 | D12: =calc!C$7*calc!C$2*LN((calc!C$4-data!B12)/calc!C$6+1) -> -0.1125527306 | E12: =calc!C$3-calc!C$5*(EXP(data!A12/calc!C$7/calc!C$2)-1) -> 33.94860473 | F12: =calc!C$4-calc!C$6*(EXP(data!A12/calc!C$7/calc!C$2)-1) -> 29.99811201
A13: 0.45 | B13: =calc!C$11-SQRT((calc!C$12/2)^2+calc!C$5*calc!C$6*EXP(data!A13/calc!C$7/calc!C$2)) -> 30 | C13: =calc!C$7*calc!C$2*LN((calc!C$3-data!B13)/calc!C$5+1) -> 0.5125727343 | D13: =calc!C$7*calc!C$2*LN((calc!C$4-data!B13)/calc!C$6+1) -> -0.06257201794 | E13: =calc!C$3-calc!C$5*(EXP(data!A13/calc!C$7/calc!C$2)-1) -> 33.6444625 | F13: =calc!C$4-calc!C$6*(EXP(data!A13/calc!C$7/calc!C$2)-1) -> 29.98693944
A14: 0.5 | B14: =calc!C$11-SQRT((calc!C$12/2)^2+calc!C$5*calc!C$6*EXP(data!A14/calc!C$7/calc!C$2)) -> 30 | C14: =calc!C$7*calc!C$2*LN((calc!C$3-data!B14)/calc!C$5+1) -> 0.5125727343 | D14: =calc!C$7*calc!C$2*LN((calc!C$4-data!B14)/calc!C$6+1) -> -0.01257232305 | E14: =calc!C$3-calc!C$5*(EXP(data!A14/calc!C$7/calc!C$2)-1) -> 31.54049578 | F14: =calc!C$4-calc!C$6*(EXP(data!A14/calc!C$7/calc!C$2)-1) -> 29.90965087
A15: 0.55 | B15: =calc!C$11-SQRT((calc!C$12/2)^2+calc!C$5*calc!C$6*EXP(data!A15/calc!C$7/calc!C$2)) -> 30 | C15: =calc!C$7*calc!C$2*LN((calc!C$3-data!B15)/calc!C$5+1) -> 0.5125727343 | D15: =calc!C$7*calc!C$2*LN((calc!C$4-data!B15)/calc!C$6+1) -> 0.03742728667 | E15: =calc!C$3-calc!C$5*(EXP(data!A15/calc!C$7/calc!C$2)-1) -> 16.98587091 | F15: =calc!C$4-calc!C$6*(EXP(data!A15/calc!C$7/calc!C$2)-1) -> 29.37499118
A16: 0.6 | B16: =calc!C$11-SQRT((calc!C$12/2)^2+calc!C$5*calc!C$6*EXP(data!A16/calc!C$7/calc!C$2)) -> 29.99999999 | C16: =calc!C$7*calc!C$2*LN((calc!C$3-data!B16)/calc!C$5+1) -> 0.5125727344 | D16: =calc!C$7*calc!C$2*LN((calc!C$4-data!B16)/calc!C$6+1) -> 0.08742726639 | E16: =calc!C$3-calc!C$5*(EXP(data!A16/calc!C$7/calc!C$2)-1) -> -83.69875623 | F16: =calc!C$4-calc!C$6*(EXP(data!A16/calc!C$7/calc!C$2)-1) -> 25.67637222
A17: 0.65 | B17: =calc!C$11-SQRT((calc!C$12/2)^2+calc!C$5*calc!C$6*EXP(data!A17/calc!C$7/calc!C$2)) -> 29.99999993 | C17: =calc!C$7*calc!C$2*LN((calc!C$3-data!B17)/calc!C$5+1) -> 0.5125727348 | D17: =calc!C$7*calc!C$2*LN((calc!C$4-data!B17)/calc!C$6+1) -> 0.1374272654 | E17: =calc!C$3-calc!C$5*(EXP(data!A17/calc!C$7/calc!C$2)-1) -> -780.2054843 | F17: =calc!C$4-calc!C$6*(EXP(data!A17/calc!C$7/calc!C$2)-1) -> 0.09041078249
A18: 0.7 | B18: =calc!C$11-SQRT((calc!C$12/2)^2+calc!C$5*calc!C$6*EXP(data!A18/calc!C$7/calc!C$2)) -> 29.99999949 | C18: =calc!C$7*calc!C$2*LN((calc!C$3-data!B18)/calc!C$5+1) -> 0.5125727376 | D18: =calc!C$7*calc!C$2*LN((calc!C$4-data!B18)/calc!C$6+1) -> 0.1874272625 | E18: =calc!C$3-calc!C$5*(EXP(data!A18/calc!C$7/calc!C$2)-1) -> -5598.434801 | F18: =calc!C$4-calc!C$6*(EXP(data!A18/calc!C$7/calc!C$2)-1) -> -176.9057682
A19: 0.75 | B19: =calc!C$11-SQRT((calc!C$12/2)^2+calc!C$5*calc!C$6*EXP(data!A19/calc!C$7/calc!C$2)) -> 29.99999649 | C19: =calc!C$7*calc!C$2*LN((calc!C$3-data!B19)/calc!C$5+1) -> 0.512572757 | D19: =calc!C$7*calc!C$2*LN((calc!C$4-data!B19)/calc!C$6+1) -> 0.2374272431 | E19: =calc!C$3-calc!C$5*(EXP(data!A19/calc!C$7/calc!C$2)-1) -> -38929.53242 | F19: =calc!C$4-calc!C$6*(EXP(data!A19/calc!C$7/calc!C$2)-1) -> -1401.313436
A20: 0.8 | B20: =calc!C$11-SQRT((calc!C$12/2)^2+calc!C$5*calc!C$6*EXP(data!A20/calc!C$7/calc!C$2)) -> 29.99997574 | C20: =calc!C$7*calc!C$2*LN((calc!C$3-data!B20)/calc!C$5+1) -> 0.5125728911 | D20: =calc!C$7*calc!C$2*LN((calc!C$4-data!B20)/calc!C$6+1) -> 0.2874271089 | E20: =calc!C$3-calc!C$5*(EXP(data!A20/calc!C$7/calc!C$2)-1) -> -269504.2925 | F20: =calc!C$4-calc!C$6*(EXP(data!A20/calc!C$7/calc!C$2)-1) -> -9871.406663
A21: 0.85 | B21: =calc!C$11-SQRT((calc!C$12/2)^2+calc!C$5*calc!C$6*EXP(data!A21/calc!C$7/calc!C$2)) -> 29.99983219 | C21: =calc!C$7*calc!C$2*LN((calc!C$3-data!B21)/calc!C$5+1) -> 0.5125738188 | D21: =calc!C$7*calc!C$2*LN((calc!C$4-data!B21)/calc!C$6+1) -> 0.3374261812 | E21: =calc!C$3-calc!C$5*(EXP(data!A21/calc!C$7/calc!C$2)-1) -> -1864552.874 | F21: =calc!C$4-calc!C$6*(EXP(data!A21/calc!C$7/calc!C$2)-1) -> -68465.02802
A22: 0.9 | B22: =calc!C$11-SQRT((calc!C$12/2)^2+calc!C$5*calc!C$6*EXP(data!A22/calc!C$7/calc!C$2)) -> 29.99883946 | C22: =calc!C$7*calc!C$2*LN((calc!C$3-data!B22)/calc!C$5+1) -> 0.5125802338 | D22: =calc!C$7*calc!C$2*LN((calc!C$4-data!B22)/calc!C$6+1) -> 0.3874197662 | E22: =calc!C$3-calc!C$5*(EXP(data!A22/calc!C$7/calc!C$2)-1) -> -12898631.26 | F22: =calc!C$4-calc!C$6*(EXP(data!A22/calc!C$7/calc!C$2)-1) -> -473798.5199
A23: 0.95 | B23: =calc!C$11-SQRT((calc!C$12/2)^2+calc!C$5*calc!C$6*EXP(data!A23/calc!C$7/calc!C$2)) -> 29.99198543 | C23: =calc!C$7*calc!C$2*LN((calc!C$3-data!B23)/calc!C$5+1) -> 0.5126244807 | D23: =calc!C$7*calc!C$2*LN((calc!C$4-data!B23)/calc!C$6+1) -> 0.4373755193 | E23: =calc!C$3-calc!C$5*(EXP(data!A23/calc!C$7/calc!C$2)-1) -> -89229150.18 | F23: =calc!C$4-calc!C$6*(EXP(data!A23/calc!C$7/calc!C$2)-1) -> -3277776.766
A24: 1 | B24: =calc!C$11-SQRT((calc!C$12/2)^2+calc!C$5*calc!C$6*EXP(data!A24/calc!C$7/calc!C$2)) -> 29.94519731 | C24: =calc!C$7*calc!C$2*LN((calc!C$3-data!B24)/calc!C$5+1) -> 0.51292452 | D24: =calc!C$7*calc!C$2*LN((calc!C$4-data!B24)/calc!C$6+1) -> 0.48707548 | E24: =calc!C$3-calc!C$5*(EXP(data!A24/calc!C$7/calc!C$2)-1) -> -617261298.6 | F24: =calc!C$4-calc!C$6*(EXP(data!A24/calc!C$7/calc!C$2)-1) -> -22674876.09
A25: 1.05 | B25: =calc!C$11-SQRT((calc!C$12/2)^2+calc!C$5*calc!C$6*EXP(data!A25/calc!C$7/calc!C$2)) -> 29.6468719 | C25: =calc!C$7*calc!C$2*LN((calc!C$3-data!B25)/calc!C$5+1) -> 0.5147598243 | D25: =calc!C$7*calc!C$2*LN((calc!C$4-data!B25)/calc!C$6+1) -> 0.5352401757 | E25: =calc!C$3-calc!C$5*(EXP(data!A25/calc!C$7/calc!C$2)-1) -> -4270032873 | F25: =calc!C$4-calc!C$6*(EXP(data!A25/calc!C$7/calc!C$2)-1) -> -156858321.7
A26: 1.1 | B26: =calc!C$11-SQRT((calc!C$12/2)^2+calc!C$5*calc!C$6*EXP(data!A26/calc!C$7/calc!C$2)) -> 28.17456136 | C26: =calc!C$7*calc!C$2*LN((calc!C$3-data!B26)/calc!C$5+1) -> 0.5222915437 | D26: =calc!C$7*calc!C$2*LN((calc!C$4-data!B26)/calc!C$6+1) -> 0.5777084563 | E26: =calc!C$3-calc!C$5*(EXP(data!A26/calc!C$7/calc!C$2)-1) -> -2.953883556e+10 | F26: =calc!C$4-calc!C$6*(EXP(data!A26/calc!C$7/calc!C$2)-1) -> -1085100053
A27: 1.15 | B27: =calc!C$11-SQRT((calc!C$12/2)^2+calc!C$5*calc!C$6*EXP(data!A27/calc!C$7/calc!C$2)) -> 23.1930277 | C27: =calc!C$7*calc!C$2*LN((calc!C$3-data!B27)/calc!C$5+1) -> 0.5382669901 | D27: =calc!C$7*calc!C$2*LN((calc!C$4-data!B27)/calc!C$6+1) -> 0.6117330099 | E27: =calc!C$3-calc!C$5*(EXP(data!A27/calc!C$7/calc!C$2)-1) -> -2.043410033e+11 | F27: =calc!C$4-calc!C$6*(EXP(data!A27/calc!C$7/calc!C$2)-1) -> -7506404175
A28: 1.2 | B28: =calc!C$11-SQRT((calc!C$12/2)^2+calc!C$5*calc!C$6*EXP(data!A28/calc!C$7/calc!C$2)) -> 9.353022013 | C28: =calc!C$7*calc!C$2*LN((calc!C$3-data!B28)/calc!C$5+1) -> 0.5595810242 | D28: =calc!C$7*calc!C$2*LN((calc!C$4-data!B28)/calc!C$6+1) -> 0.6404189758 | E28: =calc!C$3-calc!C$5*(EXP(data!A28/calc!C$7/calc!C$2)-1) -> -1.413571145e+12 | F28: =calc!C$4-calc!C$6*(EXP(data!A28/calc!C$7/calc!C$2)-1) -> -5.192710325e+10
A29: 1.25 | B29: =calc!C$11-SQRT((calc!C$12/2)^2+calc!C$5*calc!C$6*EXP(data!A29/calc!C$7/calc!C$2)) -> -27.36599574 | C29: =calc!C$7*calc!C$2*LN((calc!C$3-data!B29)/calc!C$5+1) -> 0.5831632837 | D29: =calc!C$7*calc!C$2*LN((calc!C$4-data!B29)/calc!C$6+1) -> 0.6668367163 | E29: =calc!C$3-calc!C$5*(EXP(data!A29/calc!C$7/calc!C$2)-1) -> -9.778670696e+12 | F29: =calc!C$4-calc!C$6*(EXP(data!A29/calc!C$7/calc!C$2)-1) -> -3.592164745e+11
A30: 1.3 | B30: =calc!C$11-SQRT((calc!C$12/2)^2+calc!C$5*calc!C$6*EXP(data!A30/calc!C$7/calc!C$2)) -> -124.0658565 | C30: =calc!C$7*calc!C$2*LN((calc!C$3-data!B30)/calc!C$5+1) -> 0.6076233313 | D30: =calc!C$7*calc!C$2*LN((calc!C$4-data!B30)/calc!C$6+1) -> 0.6923766687 | E30: =calc!C$3-calc!C$5*(EXP(data!A30/calc!C$7/calc!C$2)-1) -> -6.764597659e+13 | F30: =calc!C$4-calc!C$6*(EXP(data!A30/calc!C$7/calc!C$2)-1) -> -2.484954242e+12
A31: 1.35 | B31: =calc!C$11-SQRT((calc!C$12/2)^2+calc!C$5*calc!C$6*EXP(data!A31/calc!C$7/calc!C$2)) -> -378.4483051 | C31: =calc!C$7*calc!C$2*LN((calc!C$3-data!B31)/calc!C$5+1) -> 0.6324179875 | D31: =calc!C$7*calc!C$2*LN((calc!C$4-data!B31)/calc!C$6+1) -> 0.7175820125 | E31: =calc!C$3-calc!C$5*(EXP(data!A31/calc!C$7/calc!C$2)-1) -> -4.679550311e+14 | F31: =calc!C$4-calc!C$6*(EXP(data!A31/calc!C$7/calc!C$2)-1) -> -1.719018481e+13
A32: 1.4 | B32: =calc!C$11-SQRT((calc!C$12/2)^2+calc!C$5*calc!C$6*EXP(data!A32/calc!C$7/calc!C$2)) -> -1047.531032 | C32: =calc!C$7*calc!C$2*LN((calc!C$3-data!B32)/calc!C$5+1) -> 0.6573399118 | D32: =calc!C$7*calc!C$2*LN((calc!C$4-data!B32)/calc!C$6+1) -> 0.7426600882 | E32: =calc!C$3-calc!C$5*(EXP(data!A32/calc!C$7/calc!C$2)-1) -> -3.237175692e+15 | F32: =calc!C$4-calc!C$6*(EXP(data!A32/calc!C$7/calc!C$2)-1) -> -1.189166581e+14
A33: 1.45 | B33: =calc!C$11-SQRT((calc!C$12/2)^2+calc!C$5*calc!C$6*EXP(data!A33/calc!C$7/calc!C$2)) -> -2807.32802 | C33: =calc!C$7*calc!C$2*LN((calc!C$3-data!B33)/calc!C$5+1) -> 0.6823102268 | D33: =calc!C$7*calc!C$2*LN((calc!C$4-data!B33)/calc!C$6+1) -> 0.7676897732 | E33: =calc!C$3-calc!C$5*(EXP(data!A33/calc!C$7/calc!C$2)-1) -> -2.239383224e+16 | F33: =calc!C$4-calc!C$6*(EXP(data!A33/calc!C$7/calc!C$2)-1) -> -8.226305721e+14
A34: 1.5 | B34: =calc!C$11-SQRT((calc!C$12/2)^2+calc!C$5*calc!C$6*EXP(data!A34/calc!C$7/calc!C$2)) -> -7435.866594 | C34: =calc!C$7*calc!C$2*LN((calc!C$3-data!B34)/calc!C$5+1) -> 0.7072989403 | D34: =calc!C$7*calc!C$2*LN((calc!C$4-data!B34)/calc!C$6+1) -> 0.7927010597 | E34: =calc!C$3-calc!C$5*(EXP(data!A34/calc!C$7/calc!C$2)-1) -> -1.549139652e+17 | F34: =calc!C$4-calc!C$6*(EXP(data!A34/calc!C$7/calc!C$2)-1) -> -5690717087926713
A35: 1.55 | B35: =calc!C$11-SQRT((calc!C$12/2)^2+calc!C$5*calc!C$6*EXP(data!A35/calc!C$7/calc!C$2)) -> -19609.63393 | C35: =calc!C$7*calc!C$2*LN((calc!C$3-data!B35)/calc!C$5+1) -> 0.7322946492 | D35: =calc!C$7*calc!C$2*LN((calc!C$4-data!B35)/calc!C$6+1) -> 0.8177053508 | E35: =calc!C$3-calc!C$5*(EXP(data!A35/calc!C$7/calc!C$2)-1) -> -1.071649388e+18 | F35: =calc!C$4-calc!C$6*(EXP(data!A35/calc!C$7/calc!C$2)-1) -> -3.936671219e+16
A36: 1.6 | B36: =calc!C$11-SQRT((calc!C$12/2)^2+calc!C$5*calc!C$6*EXP(data!A36/calc!C$7/calc!C$2)) -> -51628.50957 | C36: =calc!C$7*calc!C$2*LN((calc!C$3-data!B36)/calc!C$5+1) -> 0.7572930177 | D36: =calc!C$7*calc!C$2*LN((calc!C$4-data!B36)/calc!C$6+1) -> 0.8427069823 | E36: =calc!C$3-calc!C$5*(EXP(data!A36/calc!C$7/calc!C$2)-1) -> -7.413356236e+18 | F36: =calc!C$4-calc!C$6*(EXP(data!A36/calc!C$7/calc!C$2)-1) -> -2.723273719e+17
A37: 1.65 | B37: =calc!C$11-SQRT((calc!C$12/2)^2+calc!C$5*calc!C$6*EXP(data!A37/calc!C$7/calc!C$2)) -> -135843.0636 | C37: =calc!C$7*calc!C$2*LN((calc!C$3-data!B37)/calc!C$5+1) -> 0.7822923973 | D37: =calc!C$7*calc!C$2*LN((calc!C$4-data!B37)/calc!C$6+1) -> 0.8677076027 | E37: =calc!C$3-calc!C$5*(EXP(data!A37/calc!C$7/calc!C$2)-1) -> -5.128342471e+19 | F37: =calc!C$4-calc!C$6*(EXP(data!A37/calc!C$7/calc!C$2)-1) -> -1.883880908e+18
A38: 1.7 | B38: =calc!C$11-SQRT((calc!C$12/2)^2+calc!C$5*calc!C$6*EXP(data!A38/calc!C$7/calc!C$2)) -> -357340.2572 | C38: =calc!C$7*calc!C$2*LN((calc!C$3-data!B38)/calc!C$5+1) -> 0.8072921615 | D38: =calc!C$7*calc!C$2*LN((calc!C$4-data!B38)/calc!C$6+1) -> 0.8927078385 | E38: =calc!C$3-calc!C$5*(EXP(data!A38/calc!C$7/calc!C$2)-1) -> -3.54763695e+20 | F38: =calc!C$4-calc!C$6*(EXP(data!A38/calc!C$7/calc!C$2)-1) -> -1.303213573e+19
A39: 1.75 | B39: =calc!C$11-SQRT((calc!C$12/2)^2+calc!C$5*calc!C$6*EXP(data!A39/calc!C$7/calc!C$2)) -> -939911.8487 | C39: =calc!C$7*calc!C$2*LN((calc!C$3-data!B39)/calc!C$5+1) -> 0.8322920718 | D39: =calc!C$7*calc!C$2*LN((calc!C$4-data!B39)/calc!C$6+1) -> 0.9177079282 | E39: =calc!C$3-calc!C$5*(EXP(data!A39/calc!C$7/calc!C$2)-1) -> -2.454151219e+21 | F39: =calc!C$4-calc!C$6*(EXP(data!A39/calc!C$7/calc!C$2)-1) -> -9.015249375e+19
A40: 1.8 | B40: =calc!C$11-SQRT((calc!C$12/2)^2+calc!C$5*calc!C$6*EXP(data!A40/calc!C$7/calc!C$2)) -> -2472164.487 | C40: =calc!C$7*calc!C$2*LN((calc!C$3-data!B40)/calc!C$5+1) -> 0.8572920377 | D40: =calc!C$7*calc!C$2*LN((calc!C$4-data!B40)/calc!C$6+1) -> 0.9427079623 | E40: =calc!C$3-calc!C$5*(EXP(data!A40/calc!C$7/calc!C$2)-1) -> -1.697709853e+22 | F40: =calc!C$4-calc!C$6*(EXP(data!A40/calc!C$7/calc!C$2)-1) -> -6.236485174e+20
A41: 1.85 | B41: =calc!C$11-SQRT((calc!C$12/2)^2+calc!C$5*calc!C$6*EXP(data!A41/calc!C$7/calc!C$2)) -> -6502223.937 | C41: =calc!C$7*calc!C$2*LN((calc!C$3-data!B41)/calc!C$5+1) -> 0.8822920248 | D41: =calc!C$7*calc!C$2*LN((calc!C$4-data!B41)/calc!C$6+1) -> 0.9677079752 | E41: =calc!C$3-calc!C$5*(EXP(data!A41/calc!C$7/calc!C$2)-1) -> -1.174425896e+23 | F41: =calc!C$4-calc!C$6*(EXP(data!A41/calc!C$7/calc!C$2)-1) -> -4.314217579e+21
A42: 1.9 | B42: =calc!C$11-SQRT((calc!C$12/2)^2+calc!C$5*calc!C$6*EXP(data!A42/calc!C$7/calc!C$2)) -> -17101898.41 | C42: =calc!C$7*calc!C$2*LN((calc!C$3-data!B42)/calc!C$5+1) -> 0.9072920198 | D42: =calc!C$7*calc!C$2*LN((calc!C$4-data!B42)/calc!C$6+1) -> 0.9927079802 | E42: =calc!C$3-calc!C$5*(EXP(data!A42/calc!C$7/calc!C$2)-1) -> -8.124333989e+23 | F42: =calc!C$4-calc!C$6*(EXP(data!A42/calc!C$7/calc!C$2)-1) -> -2.98444922e+22
A43: 1.95 | B43: =calc!C$11-SQRT((calc!C$12/2)^2+calc!C$5*calc!C$6*EXP(data!A43/calc!C$7/calc!C$2)) -> -44980668 | C43: =calc!C$7*calc!C$2*LN((calc!C$3-data!B43)/calc!C$5+1) -> 0.932292018 | D43: =calc!C$7*calc!C$2*LN((calc!C$4-data!B43)/calc!C$6+1) -> 1.017707982 | E43: =calc!C$3-calc!C$5*(EXP(data!A43/calc!C$7/calc!C$2)-1) -> -5.620176034e+24 | F43: =calc!C$4-calc!C$6*(EXP(data!A43/calc!C$7/calc!C$2)-1) -> -2.064554461e+23
A44: 2 | B44: =calc!C$11-SQRT((calc!C$12/2)^2+calc!C$5*calc!C$6*EXP(data!A44/calc!C$7/calc!C$2)) -> -118306108 | C44: =calc!C$7*calc!C$2*LN((calc!C$3-data!B44)/calc!C$5+1) -> 0.9572920172 | D44: =calc!C$7*calc!C$2*LN((calc!C$4-data!B44)/calc!C$6+1) -> 1.042707983 | E44: =calc!C$3-calc!C$5*(EXP(data!A44/calc!C$7/calc!C$2)-1) -> -3.887872987e+25 | F44: =calc!C$4-calc!C$6*(EXP(data!A44/calc!C$7/calc!C$2)-1) -> -1.42819824e+24
A45: 2.05 | B45: =calc!C$11-SQRT((calc!C$12/2)^2+calc!C$5*calc!C$6*EXP(data!A45/calc!C$7/calc!C$2)) -> -311163261.4 | C45: =calc!C$7*calc!C$2*LN((calc!C$3-data!B45)/calc!C$5+1) -> 0.982292017 | D45: =calc!C$7*calc!C$2*LN((calc!C$4-data!B45)/calc!C$6+1) -> 1.067707983 | E45: =calc!C$3-calc!C$5*(EXP(data!A45/calc!C$7/calc!C$2)-1) -> -2.689516533e+26 | F45: =calc!C$4-calc!C$6*(EXP(data!A45/calc!C$7/calc!C$2)-1) -> -9.879856651e+24
A46: 2.1 | B46: =calc!C$11-SQRT((calc!C$12/2)^2+calc!C$5*calc!C$6*EXP(data!A46/calc!C$7/calc!C$2)) -> -818407154.8 | C46: =calc!C$7*calc!C$2*LN((calc!C$3-data!B46)/calc!C$5+1) -> 1.007292017 | D46: =calc!C$7*calc!C$2*LN((calc!C$4-data!B46)/calc!C$6+1) -> 1.092707983 | E46: =calc!C$3-calc!C$5*(EXP(data!A46/calc!C$7/calc!C$2)-1) -> -1.860528676e+27 | F46: =calc!C$4-calc!C$6*(EXP(data!A46/calc!C$7/calc!C$2)-1) -> -6.834595136e+25
A47: 2.15 | B47: =calc!C$11-SQRT((calc!C$12/2)^2+calc!C$5*calc!C$6*EXP(data!A47/calc!C$7/calc!C$2)) -> -2152536393 | C47: =calc!C$7*calc!C$2*LN((calc!C$3-data!B47)/calc!C$5+1) -> 1.032292017 | D47: =calc!C$7*calc!C$2*LN((calc!C$4-data!B47)/calc!C$6+1) -> 1.117707983 | E47: =calc!C$3-calc!C$5*(EXP(data!A47/calc!C$7/calc!C$2)-1) -> -1.287059184e+28 | F47: =calc!C$4-calc!C$6*(EXP(data!A47/calc!C$7/calc!C$2)-1) -> -4.727972513e+26
A48: 2.2 | B48: =calc!C$11-SQRT((calc!C$12/2)^2+calc!C$5*calc!C$6*EXP(data!A48/calc!C$7/calc!C$2)) -> -5661500914 | C48: =calc!C$7*calc!C$2*LN((calc!C$3-data!B48)/calc!C$5+1) -> 1.057292017 | D48: =calc!C$7*calc!C$2*LN((calc!C$4-data!B48)/calc!C$6+1) -> 1.142707983 | E48: =calc!C$3-calc!C$5*(EXP(data!A48/calc!C$7/calc!C$2)-1) -> -8.903498046e+28 | F48: =calc!C$4-calc!C$6*(EXP(data!A48/calc!C$7/calc!C$2)-1) -> -3.270672752e+27
A49: 2.25 | B49: =calc!C$11-SQRT((calc!C$12/2)^2+calc!C$5*calc!C$6*EXP(data!A49/calc!C$7/calc!C$2)) -> -1.48906158e+10 | C49: =calc!C$7*calc!C$2*LN((calc!C$3-data!B49)/calc!C$5+1) -> 1.082292017 | D49: =calc!C$7*calc!C$2*LN((calc!C$4-data!B49)/calc!C$6+1) -> 1.167707983 | E49: =calc!C$3-calc!C$5*(EXP(data!A49/calc!C$7/calc!C$2)-1) -> -6.159178882e+29 | F49: =calc!C$4-calc!C$6*(EXP(data!A49/calc!C$7/calc!C$2)-1) -> -2.262555508e+28
A50: 2.3 | B50: =calc!C$11-SQRT((calc!C$12/2)^2+calc!C$5*calc!C$6*EXP(data!A50/calc!C$7/calc!C$2)) -> -3.916460346e+10 | C50: =calc!C$7*calc!C$2*LN((calc!C$3-data!B50)/calc!C$5+1) -> 1.107292017 | D50: =calc!C$7*calc!C$2*LN((calc!C$4-data!B50)/calc!C$6+1) -> 1.192707983 | E50: =calc!C$3-calc!C$5*(EXP(data!A50/calc!C$7/calc!C$2)-1) -> -4.260739352e+30 | F50: =calc!C$4-calc!C$6*(EXP(data!A50/calc!C$7/calc!C$2)-1) -> -1.565169558e+29
A51: 2.35 | B51: =calc!C$11-SQRT((calc!C$12/2)^2+calc!C$5*calc!C$6*EXP(data!A51/calc!C$7/calc!C$2)) -> -1.030089141e+11 | C51: =calc!C$7*calc!C$2*LN((calc!C$3-data!B51)/calc!C$5+1) -> 1.132292017 | D51: =calc!C$7*calc!C$2*LN((calc!C$4-data!B51)/calc!C$6+1) -> 1.217707983 | E51: =calc!C$3-calc!C$5*(EXP(data!A51/calc!C$7/calc!C$2)-1) -> -2.947454552e+31 | F51: =calc!C$4-calc!C$6*(EXP(data!A51/calc!C$7/calc!C$2)-1) -> -1.082738407e+30
A52: 2.4 | B52: =calc!C$11-SQRT((calc!C$12/2)^2+calc!C$5*calc!C$6*EXP(data!A52/calc!C$7/calc!C$2)) -> -2.709292432e+11 | C52: =calc!C$7*calc!C$2*LN((calc!C$3-data!B52)/calc!C$5+1) -> 1.157292017 | D52: =calc!C$7*calc!C$2*LN((calc!C$4-data!B52)/calc!C$6+1) -> 1.242707983 | E52: =calc!C$3-calc!C$5*(EXP(data!A52/calc!C$7/calc!C$2)-1) -> -2.038962634e+32 | F52: =calc!C$4-calc!C$6*(EXP(data!A52/calc!C$7/calc!C$2)-1) -> -7.490066819e+30
A53: 2.45 | B53: =calc!C$11-SQRT((calc!C$12/2)^2+calc!C$5*calc!C$6*EXP(data!A53/calc!C$7/calc!C$2)) -> -7.125854637e+11 | C53: =calc!C$7*calc!C$2*LN((calc!C$3-data!B53)/calc!C$5+1) -> 1.182292017 | D53: =calc!C$7*calc!C$2*LN((calc!C$4-data!B53)/calc!C$6+1) -> 1.267707983 | E53: =calc!C$3-calc!C$5*(EXP(data!A53/calc!C$7/calc!C$2)-1) -> -1.410494564e+33 | F53: =calc!C$4-calc!C$6*(EXP(data!A53/calc!C$7/calc!C$2)-1) -> -5.181408604e+31
A54: 2.5 | B54: =calc!C$11-SQRT((calc!C$12/2)^2+calc!C$5*calc!C$6*EXP(data!A54/calc!C$7/calc!C$2)) -> -1.874209063e+12 | C54: =calc!C$7*calc!C$2*LN((calc!C$3-data!B54)/calc!C$5+1) -> 1.207292017 | D54: =calc!C$7*calc!C$2*LN((calc!C$4-data!B54)/calc!C$6+1) -> 1.292707983 | E54: =calc!C$3-calc!C$5*(EXP(data!A54/calc!C$7/calc!C$2)-1) -> -9.757387814e+33 | F54: =calc!C$4-calc!C$6*(EXP(data!A54/calc!C$7/calc!C$2)-1) -> -3.584346544e+32
A55: 2.55 | B55: =calc!C$11-SQRT((calc!C$12/2)^2+calc!C$5*calc!C$6*EXP(data!A55/calc!C$7/calc!C$2)) -> -4.929457295e+12 | C55: =calc!C$7*calc!C$2*LN((calc!C$3-data!B55)/calc!C$5+1) -> 1.232292017 | D55: =calc!C$7*calc!C$2*LN((calc!C$4-data!B55)/calc!C$6+1) -> 1.317707983 | E55: =calc!C$3-calc!C$5*(EXP(data!A55/calc!C$7/calc!C$2)-1) -> -6.749874786e+34 | F55: =calc!C$4-calc!C$6*(EXP(data!A55/calc!C$7/calc!C$2)-1) -> -2.47954584e+33
A56: 2.6 | B56: =calc!C$11-SQRT((calc!C$12/2)^2+calc!C$5*calc!C$6*EXP(data!A56/calc!C$7/calc!C$2)) -> -1.296522875e+13 | C56: =calc!C$7*calc!C$2*LN((calc!C$3-data!B56)/calc!C$5+1) -> 1.257292017 | D56: =calc!C$7*calc!C$2*LN((calc!C$4-data!B56)/calc!C$6+1) -> 1.342707983 | E56: =calc!C$3-calc!C$5*(EXP(data!A56/calc!C$7/calc!C$2)-1) -> -4.669365458e+35 | F56: =calc!C$4-calc!C$6*(EXP(data!A56/calc!C$7/calc!C$2)-1) -> -1.715277107e+34
A57: 2.65 | B57: =calc!C$11-SQRT((calc!C$12/2)^2+calc!C$5*calc!C$6*EXP(data!A57/calc!C$7/calc!C$2)) -> -3.410054017e+13 | C57: =calc!C$7*calc!C$2*LN((calc!C$3-data!B57)/calc!C$5+1) -> 1.282292017 | D57: =calc!C$7*calc!C$2*LN((calc!C$4-data!B57)/calc!C$6+1) -> 1.367707983 | E57: =calc!C$3-calc!C$5*(EXP(data!A57/calc!C$7/calc!C$2)-1) -> -3.23013011e+36 | F57: =calc!C$4-calc!C$6*(EXP(data!A57/calc!C$7/calc!C$2)-1) -> -1.186578408e+35
A58: 2.7 | B58: =calc!C$11-SQRT((calc!C$12/2)^2+calc!C$5*calc!C$6*EXP(data!A58/calc!C$7/calc!C$2)) -> -8.968965085e+13 | C58: =calc!C$7*calc!C$2*LN((calc!C$3-data!B58)/calc!C$5+1) -> 1.307292017 | D58: =calc!C$7*calc!C$2*LN((calc!C$4-data!B58)/calc!C$6+1) -> 1.392707983 | E58: =calc!C$3-calc!C$5*(EXP(data!A58/calc!C$7/calc!C$2)-1) -> -2.234509297e+37 | F58: =calc!C$4-calc!C$6*(EXP(data!A58/calc!C$7/calc!C$2)-1) -> -8.208401499e+35
A59: 2.75 | B59: =calc!C$11-SQRT((calc!C$12/2)^2+calc!C$5*calc!C$6*EXP(data!A59/calc!C$7/calc!C$2)) -> -2.35897538e+14 | C59: =calc!C$7*calc!C$2*LN((calc!C$3-data!B59)/calc!C$5+1) -> 1.332292017 | D59: =calc!C$7*calc!C$2*LN((calc!C$4-data!B59)/calc!C$6+1) -> 1.417707983 | E59: =calc!C$3-calc!C$5*(EXP(data!A59/calc!C$7/calc!C$2)-1) -> -1.545768012e+38 | F59: =calc!C$4-calc!C$6*(EXP(data!A59/calc!C$7/calc!C$2)-1) -> -5.678331472e+36
A60: 2.8 | B60: =calc!C$11-SQRT((calc!C$12/2)^2+calc!C$5*calc!C$6*EXP(data!A60/calc!C$7/calc!C$2)) -> -620446705949970 | C60: =calc!C$7*calc!C$2*LN((calc!C$3-data!B60)/calc!C$5+1) -> 1.357292017 | D60: =calc!C$7*calc!C$2*LN((calc!C$4-data!B60)/calc!C$6+1) -> 1.442707983 | E60: =calc!C$3-calc!C$5*(EXP(data!A60/calc!C$7/calc!C$2)-1) -> -1.069316986e+39 | F60: =calc!C$4-calc!C$6*(EXP(data!A60/calc!C$7/calc!C$2)-1) -> -3.928103214e+37
A61: 2.85 | B61: =calc!C$11-SQRT((calc!C$12/2)^2+calc!C$5*calc!C$6*EXP(data!A61/calc!C$7/calc!C$2)) -> -1631869998390846 | C61: =calc!C$7*calc!C$2*LN((calc!C$3-data!B61)/calc!C$5+1) -> 1.382292017 | D61: =calc!C$7*calc!C$2*LN((calc!C$4-data!B61)/calc!C$6+1) -> 1.467707983 | E61: =calc!C$3-calc!C$5*(EXP(data!A61/calc!C$7/calc!C$2)-1) -> -7.397221366e+39 | F61: =calc!C$4-calc!C$6*(EXP(data!A61/calc!C$7/calc!C$2)-1) -> -2.717346624e+38
A62: 2.9 | B62: =calc!C$11-SQRT((calc!C$12/2)^2+calc!C$5*calc!C$6*EXP(data!A62/calc!C$7/calc!C$2)) -> -4292068385745962 | C62: =calc!C$7*calc!C$2*LN((calc!C$3-data!B62)/calc!C$5+1) -> 1.407292017 | D62: =calc!C$7*calc!C$2*LN((calc!C$4-data!B62)/calc!C$6+1) -> 1.492707983 | E62: =calc!C$3-calc!C$5*(EXP(data!A62/calc!C$7/calc!C$2)-1) -> -5.117180841e+40 | F62: =calc!C$4-calc!C$6*(EXP(data!A62/calc!C$7/calc!C$2)-1) -> -1.879780717e+39
A63: 2.95 | B63: =calc!C$11-SQRT((calc!C$12/2)^2+calc!C$5*calc!C$6*EXP(data!A63/calc!C$7/calc!C$2)) -> -1.128879816e+16 | C63: =calc!C$7*calc!C$2*LN((calc!C$3-data!B63)/calc!C$5+1) -> 1.432292017 | D63: =calc!C$7*calc!C$2*LN((calc!C$4-data!B63)/calc!C$6+1) -> 1.517707983 | E63: =calc!C$3-calc!C$5*(EXP(data!A63/calc!C$7/calc!C$2)-1) -> -3.539915661e+41 | F63: =calc!C$4-calc!C$6*(EXP(data!A63/calc!C$7/calc!C$2)-1) -> -1.300377182e+40
A64: 3 | B64: =calc!C$11-SQRT((calc!C$12/2)^2+calc!C$5*calc!C$6*EXP(data!A64/calc!C$7/calc!C$2)) -> -2.969127058e+16 | C64: =calc!C$7*calc!C$2*LN((calc!C$3-data!B64)/calc!C$5+1) -> 1.457292017 | D64: =calc!C$7*calc!C$2*LN((calc!C$4-data!B64)/calc!C$6+1) -> 1.542707983 | E64: =calc!C$3-calc!C$5*(EXP(data!A64/calc!C$7/calc!C$2)-1) -> -2.448809858e+42 | F64: =calc!C$4-calc!C$6*(EXP(data!A64/calc!C$7/calc!C$2)-1) -> -8.995628049e+40
